{"text_format":"3","workbook":"xlsx","n_sheets":1,"sheets":["Faktura"],"not_rendered":{"external_links":1,"defined_names":16},"read":"whole","date_system":"1900"}

{"sheet":"Faktura","index":0,"n_rows":50,"n_cols":16,"rows_kept":50,"merged":[[0,6,0,7],[43,6,43,7]]}
[{"$nulls":6},"→ Markera indata-celler",null,"Tab-tangenten går till nästa oskyddade cell, eller inom markering"]
[{"$nulls":3},"Fakturanummer",null,null,{"$f":"TEXT(MAX([1]Reskontra!$A:$A)+1,\"0\")","v":"40"},"Ange fakturanummer","Nästa lediga nummer"]
[]
[{"$nulls":3},"Fakturadatum",null,null,"Ange fakturadatum",null,"ctrl+shift+, -> dagens datum"]
[{"$nulls":3},"Betalningsvillkor",30]
[{"$nulls":3},"Förfallodatum",{"$f":"Fakturadatum+Betalningsvillkor","v":"1900-01-30"}]
[]
[{"$nulls":15},"För att skapa ny faktura: dubbelklicka på malldokumentet i mappen"]
[]
[{"$nulls":15},"För redigering av malldokumentet:"]
[null,"Avsändare",null,"Mottagare",{"$nulls":11},"File: Open för att redigera själva mallen"]
[null,"ACME Kit Ltd",{"$nulls":4},"Ange mottagare",{"$nulls":8},"Review: Unprotect sheet för att låsa upp alla celler"]
[null,"Big Bridge 1",{"$nulls":13},"Se ctrl+1 för skydd av enskilda celler"]
[null,"573 90 Storebro"]
[{"$nulls":15},"Review: Protect sheet: OK = utan lösenord"]
[null,"faktura@stallsathalla.se",{"$nulls":13},"Tab för att hoppa mellan olåsta celler"]
[null,{"$f":"Orgnr","v":"550000-0000"}]
[]
[null,"Antal","Text","á pris","Belopp"]
[{"$nulls":4},{"$f":"fakturarader_table[[#This Row],[Antal]]*fakturarader_table[[#This Row],[á pris]]","v":0},null,"Antal och pris, eller belopp"]
[{"$nulls":4},{"$f":"fakturarader_table[[#This Row],[Antal]]*fakturarader_table[[#This Row],[á pris]]","v":0}]
[{"$nulls":4},{"$f":"fakturarader_table[[#This Row],[Antal]]*fakturarader_table[[#This Row],[á pris]]","v":0}]
[{"$nulls":4},{"$f":"fakturarader_table[[#This Row],[Antal]]*fakturarader_table[[#This Row],[á pris]]","v":0}]
[{"$nulls":4},{"$f":"fakturarader_table[[#This Row],[Antal]]*fakturarader_table[[#This Row],[á pris]]","v":0}]
[{"$nulls":4},{"$f":"fakturarader_table[[#This Row],[Antal]]*fakturarader_table[[#This Row],[á pris]]","v":0}]
[{"$nulls":4},{"$f":"fakturarader_table[[#This Row],[Antal]]*fakturarader_table[[#This Row],[á pris]]","v":0}]
[{"$nulls":4},{"$f":"fakturarader_table[[#This Row],[Antal]]*fakturarader_table[[#This Row],[á pris]]","v":0}]
[{"$nulls":4},{"$f":"fakturarader_table[[#This Row],[Antal]]*fakturarader_table[[#This Row],[á pris]]","v":0}]
[{"$nulls":4},{"$f":"fakturarader_table[[#This Row],[Antal]]*fakturarader_table[[#This Row],[á pris]]","v":0}]
[{"$nulls":4},{"$f":"fakturarader_table[[#This Row],[Antal]]*fakturarader_table[[#This Row],[á pris]]","v":0}]
[{"$nulls":4},{"$f":"fakturarader_table[[#This Row],[Antal]]*fakturarader_table[[#This Row],[á pris]]","v":0}]
[{"$nulls":4},{"$f":"fakturarader_table[[#This Row],[Antal]]*fakturarader_table[[#This Row],[á pris]]","v":0},null,"Spara som (F12)",null,{"$f":"fakturanr & \" \" & Mottagare","v":" "}]
[{"$nulls":4},{"$f":"fakturarader_table[[#This Row],[Antal]]*fakturarader_table[[#This Row],[á pris]]","v":0}]
[{"$nulls":4},{"$f":"fakturarader_table[[#This Row],[Antal]]*fakturarader_table[[#This Row],[á pris]]","v":0}]
[{"$nulls":4},{"$f":"fakturarader_table[[#This Row],[Antal]]*fakturarader_table[[#This Row],[á pris]]","v":0}]
[{"$nulls":4},{"$f":"fakturarader_table[[#This Row],[Antal]]*fakturarader_table[[#This Row],[á pris]]","v":0}]
[]
[]
[]
[]
[]
[null,"Orgnr","550000-0000","Summa",{"$f":"SUM(fakturarader_table[Belopp])/(1+Beloppet_inkl_moms*Momssats)","v":0},null,false,"Beloppen inkl moms"]
[null,"Innehar","F-skattsedel",{"v":0.25,"d":"Moms 25%"},{"$f":"Momssats*Summa","v":0},null,"Momssats",null,null,{"$f":"[1]!accounts_receivable_table[[#Headers],[Fakturanr]:[Att betala]]","v":"Fakturanr"},"Fakturadatum","Förfallodatum","Mottagare","Summa","Moms","Att betala"]
[null,"IBAN","[pending]","Att betala",{"$f":"Summa+Moms","v":0},null,"→ Kopiera till reskontra",null,{"$f":"_xlfn.HSTACK(\"ctrl+c\",fakturanr,Fakturadatum,Förfallodatum,Mottagare,Summa,Moms,Att_betala)","v":"ctrl+c"},0,0,30,0,0,0,0]
[]
[]
[null,"Säte","Firma",null,"Telefon",null,"Dölj denna instruktion genom att klicka på [-] ovanför kolumn Q"]
[null,"Tranås","ACME Kit Ltd",null,"0705-500 000",{"$nulls":10},{"$f":"version","v":"17 maj 2025"}]
[{"$nulls":6},"File: Share: Email: Send as PDF",{"$nulls":8},"bo.sinander@powerpage.se"]
[{"$nulls":15},".ıI PowerPage"]